fUSD/lending_fUSD_20240104
["ID","MTS","AMOUNT","RATE_DAILY","PERIOD"]
[310179899,1704390665425,-7800.0,0.000339,12]
[310179900,1704390665435,-199.09,0.00033914,2]
[310179901,1704390665445,-222.41,0.0003392,2]
[310179902,1704390665456,-189.311521,0.00033947,7]
[310179903,1704390665465,-4372.51596475,0.00033947,6]
[310179904,1704390665476,-300.0,0.00033947,2]
[310179905,1704390665486,-150.0,0.0003395,2]
[310179906,1704390665497,-150.0,0.00033957,2]
[310179907,1704390665507,-500.0,0.00033971,2]
[310179908,1704390665517,-500.0,0.00033971,2]
[310179909,1704390665528,-500.0,0.00033971,2]
[310179910,1704390665539,-1207.47,0.00033971,2]
[310179911,1704390665550,-2681.4,0.00033971,2]
[310179912,1704390665563,-624.01894501,0.00033972,2]
[310179913,1704390665575,-500.0,0.00033972,2]
[310179914,1704390665586,-500.0,0.00033972,2]
[310179915,1704390665597,-500.0,0.00033972,2]
[310179916,1704390665607,-500.0,0.00033972,2]
[310179917,1704390665617,-546.01723728,0.00033972,2]
[310179918,1704390665627,-500.0,0.00033972,2]
[310179919,1704390665637,-500.0,0.00033972,2]
[310179920,1704390665647,-500.0,0.00033972,2]
[310179921,1704390665658,-504.83620759,0.00033972,2]
[310179922,1704390665668,-500.0,0.00033972,2]
[310179923,1704390665679,-500.0,0.00033972,2]
[310179924,1704390665690,-500.0,0.00033972,2]
[310179925,1704390665700,-500.0,0.00033972,2]
[310179926,1704390665710,-500.0,0.00033972,2]
[310179927,1704390665721,-500.0,0.00033972,2]
[310179928,1704390665731,-529.9,0.00033972,2]
[310179929,1704390665741,-500.0,0.00033972,2]
[310179930,1704390665752,-319.18,0.00033972,2]
[310179931,1704390665762,-591.73,0.00033972,2]
[310179932,1704390665773,-476.05540576,0.00033972,2]
[310179933,1704390665783,-500.0,0.00033972,2]
[310179934,1704390665793,-500.0,0.00033972,2]
[310179935,1704390665804,-500.0,0.00033972,2]
[310179936,1704390665815,-500.0,0.00033972,2]
[310179937,1704390665825,-500.0,0.00033972,2]
[310179938,1704390665836,-500.0,0.00033972,2]
[310179939,1704390665846,-500.0,0.00033972,2]
[310179940,1704390665858,-503.41627656,0.00033972,2]
[310179941,1704390666119,-612.2265541,0.00033972,2]
[310179942,1704390666131,-500.0,0.00033972,2]
[310179943,1704390666141,-500.0,0.00033972,2]
[310179944,1704390666151,-648.3045524,0.00033972,2]
[310179945,1704390666161,-500.0,0.00033972,2]
[310179946,1704390666173,-500.0,0.00033972,2]
[310179947,1704390666184,-500.0,0.00033972,2]
[310179948,1704390666195,-500.0,0.00033972,2]
[310179949,1704390666205,-500.0,0.00033972,2]
[310179950,1704390666216,-500.0,0.00033972,2]
[310179951,1704390666226,-500.0,0.00033972,2]
[310179952,1704390666236,-500.0,0.00033972,2]
[310179953,1704390666246,-510.64783218,0.00033972,2]
[310179954,1704390666255,-500.0,0.00033972,2]
[310179955,1704390666265,-500.0,0.00033972,2]
[310179956,1704390666275,-500.0,0.00033972,2]
[310179957,1704390666285,-500.0,0.00033972,2]
[310179958,1704390666295,-500.0,0.00033972,2]
[310179959,1704390666306,-500.0,0.00033972,2]
[310179960,1704390666316,-500.0,0.00033972,2]
[310179961,1704390666326,-500.0,0.00033972,2]
[310179962,1704390666336,-500.0,0.00033972,2]
[310179963,1704390666346,-902.69,0.00033972,2]
[310179964,1704390666355,-500.0,0.00033972,2]
[310179965,1704390666365,-500.0,0.00033972,2]
[310179966,1704390666374,-500.0,0.00033972,2]
[310179967,1704390666384,-500.0,0.00033972,2]
[310179968,1704390666394,-500.0,0.00033972,2]
[310179969,1704390666403,-500.0,0.00033972,2]
[310179970,1704390666413,-500.0,0.00033972,2]
[310179971,1704390666425,-497.00829393,0.00033972,2]
[310179972,1704390666435,-166.89,0.00033972,2]
[310179973,1704390666444,-500.0,0.00033972,2]
[310179974,1704390666454,-500.0,0.00033972,2]
[310179975,1704390666463,-500.0,0.00033972,2]
[310179976,1704390666473,-500.0,0.00033972,2]
[310179977,1704390666483,-500.0,0.00033972,2]
[310179978,1704390666493,-500.0,0.00033972,2]
[310179979,1704390666503,-981.17,0.00033972,2]
[310179980,1704390666513,-500.0,0.00033972,2]
[310179981,1704390666524,-500.0,0.00033972,2]
[310179982,1704390666534,-500.0,0.00033972,2]
[310179983,1704390666544,-796.67214243,0.00033972,2]
[310179984,1704390666556,-500.0,0.00033972,2]
[310179985,1704390666566,-500.0,0.00033972,2]
[310179986,1704390666577,-500.0,0.00033972,2]
[310179987,1704390666587,-500.0,0.00033972,2]
[310179988,1704390666598,-500.0,0.00033972,2]
[310179989,1704390666608,-500.0,0.00033972,2]
[310179990,1704390666617,-500.0,0.00033972,2]
[310179991,1704390666627,-500.0,0.00033972,2]
[310179992,1704390666637,-500.0,0.00033972,2]
[310179993,1704390666647,-500.0,0.00033972,2]
[310179994,1704390666657,-500.0,0.00033972,2]
[310179995,1704390666666,-500.0,0.00033972,2]
[310179996,1704390666678,-500.0,0.00033972,2]
[310179997,1704390666687,-500.0,0.00033972,2]
[310179998,1704390666698,-500.0,0.00033972,2]
[310179999,1704390666708,-1500.0,0.00033972,2]
[310180000,1704390666718,-500.0,0.00033972,2]
[310180001,1704390666728,-500.0,0.00033972,2]
[310180002,1704390666738,-500.0,0.00033972,2]
[310180003,1704390666748,-500.0,0.00033972,2]
[310180004,1704390666758,-500.0,0.00033972,2]
[310180005,1704390666767,-500.0,0.00033972,2]
[310180006,1704390666777,-500.0,0.00033972,2]
[310180007,1704390666787,-500.0,0.00033972,2]
[310180008,1704390666797,-500.0,0.00033972,2]
[310180009,1704390666806,-500.0,0.00033972,2]
[310180010,1704390666816,-500.0,0.00033972,2]
[310180011,1704390666825,-500.0,0.00033972,2]
[310180012,1704390666835,-417.91697435,0.00033972,2]
[310180013,1704390666845,-500.0,0.00033972,2]
[310180014,1704390666855,-429.6475254,0.00033972,2]
[310180015,1704390666865,-584.15,0.00033972,2]
[310180016,1704390666875,-500.0,0.00033972,2]
[310180017,1704390666885,-521.08,0.00033972,2]
[310180018,1704390666895,-595.39,0.00033972,2]
[310180019,1704390666904,-500.0,0.00033972,2]
[310180020,1704390666914,-500.0,0.00033972,2]
[310180021,1704390666925,-500.0,0.00033972,2]
[310180022,1704390666934,-500.0,0.00033972,2]
[310180023,1704390666943,-500.0,0.00033972,2]
[310180024,1704390666953,-579.94,0.00033972,2]
[310180025,1704390666963,-500.0,0.00033972,2]
[310180026,1704390666973,-311.58,0.00033972,2]
[310180027,1704390666983,-500.0,0.00033972,2]
[310180028,1704390666992,-500.0,0.00033972,2]
[310180029,1704390667002,-500.0,0.00033972,2]
[310180030,1704390667011,-500.0,0.00033972,2]
[310180031,1704390667021,-500.0,0.00033972,2]
[310180032,1704390667064,-500.0,0.00033972,2]
[310180033,1704390667074,-500.0,0.00033972,2]
[310180034,1704390667086,-500.0,0.00033972,2]
[310180035,1704390667096,-500.0,0.00033972,2]
[310180036,1704390667107,-500.0,0.00033972,2]
[310180037,1704390667120,-500.0,0.00033972,2]
[310180038,1704390667130,-500.0,0.00033972,2]
[310180039,1704390667147,-500.0,0.00033972,2]
[310180040,1704390667158,-500.0,0.00033972,2]
[310180041,1704390667169,-500.0,0.00033972,2]
[310180042,1704390667196,-500.0,0.00033972,2]
[310180043,1704390667209,-500.0,0.00033972,2]
[310180044,1704390667221,-500.0,0.00033972,2]
[310180045,1704390667231,-500.0,0.00033972,2]
[310180046,1704390667243,-500.0,0.00033972,2]
[310180047,1704390667257,-500.0,0.00033972,2]
[310180048,1704390667276,-500.0,0.00033972,2]
[310180049,1704390667296,-511.64503653,0.00033972,2]
[310180050,1704390667309,-500.0,0.00033972,2]
[310180051,1704390667327,-150.0,0.00033972,2]
[310180052,1704390667343,-500.0,0.00033972,2]
[310180053,1704390667362,-500.0,0.00033972,2]
[310180054,1704390667374,-500.0,0.00033972,2]
[310180055,1704390667388,-500.0,0.00033972,2]
[310180056,1704390667401,-500.0,0.00033972,2]
[310180057,1704390667413,-539.84,0.00033972,2]
[310180058,1704390667424,-500.0,0.00033972,2]
[310180059,1704390667457,-500.0,0.00033972,2]
[310180060,1704390667472,-500.0,0.00033972,2]
[310180061,1704390667486,-527.22,0.00033972,2]
[310180062,1704390667497,-600.33156322,0.00033972,2]
[310180063,1704390667507,-500.0,0.00033972,2]
[310180064,1704390667526,-500.0,0.00033972,2]
[310180065,1704390667536,-500.0,0.00033972,2]
[310180066,1704390667566,-500.0,0.00033972,2]
[310180067,1704390667582,-500.0,0.00033972,2]
[310180068,1704390667595,-500.0,0.00033972,2]
[310180069,1704390667612,-500.0,0.00033972,2]
[310180070,1704390667623,-500.0,0.00033972,2]
[310180071,1704390667633,-674.84,0.00033972,2]
[310180072,1704390667643,-500.0,0.00033972,2]
[310180073,1704390667652,-503.61,0.00033972,2]
[310180074,1704390667663,-500.0,0.00033972,2]
[310180075,1704390667676,-500.0,0.00033972,2]
[310180076,1704390667687,-500.0,0.00033972,2]
[310180077,1704390667697,-500.0,0.00033972,2]
[310180078,1704390667707,-500.0,0.00033972,2]
[310180079,1704390667718,-500.0,0.00033972,2]
[310180080,1704390667728,-500.0,0.00033972,2]
[310180081,1704390667739,-936.08,0.00033972,2]
[310180082,1704390667750,-500.0,0.00033972,2]
[310180083,1704390667761,-500.0,0.00033972,2]
[310180084,1704390667772,-500.0,0.00033972,2]
[310180085,1704390667782,-500.0,0.00033972,2]
[310180086,1704390667791,-500.0,0.00033972,2]
[310180087,1704390667801,-500.0,0.00033972,2]
[310180088,1704390667811,-500.0,0.00033972,2]
[310180089,1704390667821,-528.45993714,0.00033972,2]
[310180090,1704390667831,-500.0,0.00033972,2]
[310180091,1704390667841,-500.0,0.00033972,2]
[310180092,1704390667851,-500.0,0.00033972,2]
[310180093,1704390667862,-500.0,0.00033972,2]
[310180094,1704390667872,-500.0,0.00033972,2]
[310180095,1704390667883,-500.0,0.00033972,2]
[310180096,1704390667895,-1562.75,0.00033972,2]
[310180097,1704390667905,-500.0,0.00033972,2]
[310180098,1704390667915,-500.0,0.00033972,2]
[310180099,1704390667927,-609.88,0.00033972,2]
[310180100,1704390667937,-617.22,0.00033972,2]
[310180101,1704390667948,-500.0,0.00033972,2]
[310180102,1704390667958,-500.0,0.00033972,2]
[310180103,1704390667969,-500.0,0.00033972,2]
[310180104,1704390667979,-500.0,0.00033972,2]
[310180105,1704390667991,-865.18,0.00033972,2]
[310180106,1704390668002,-500.0,0.00033972,2]
[310180107,1704390668012,-585.91213751,0.00033972,2]
[310180108,1704390668022,-500.0,0.00033972,2]
[310180109,1704390668032,-715.32,0.00033972,2]
[310180110,1704390668042,-500.0,0.00033972,2]
[310180111,1704390668053,-500.0,0.00033972,2]
[310180112,1704390668062,-1738.62,0.00033972,2]
[310180113,1704390668072,-500.0,0.00033972,2]
[310180114,1704390668082,-500.0,0.00033972,2]
[310180115,1704390668093,-500.0,0.00033972,2]
[310180116,1704390668103,-500.0,0.00033972,2]
[310180117,1704390668114,-942.91,0.00033972,2]
[310180118,1704390668124,-500.0,0.00033972,2]
[310180119,1704390668134,-500.0,0.00033972,2]
[310180120,1704390668145,-1042.94,0.00033972,2]
[310180121,1704390668159,-500.0,0.00033972,2]
[310180122,1704390668170,-3818.52,0.00033972,2]
[310180123,1704390668182,-500.0,0.00033972,2]
[310180124,1704390668193,-575.83,0.00033972,2]
[310180125,1704390668203,-665.59,0.00033972,2]
[310180126,1704390668214,-1372.69,0.00033972,2]
[310180127,1704390668225,-508.01139032,0.00033972,2]
[310180128,1704390668239,-500.0,0.00033972,2]
[310180129,1704390668249,-16745.67,0.00033972,2]
[310180130,1704390668259,-500.0,0.00033972,2]
[310180131,1704390668269,-500.0,0.00033972,2]
[310180132,1704390668280,-721.34,0.00033972,2]
[310180133,1704390668291,-3173.06,0.00033972,2]
[310180134,1704390668301,-500.0,0.00033972,2]
[310180135,1704390668311,-1815.37,0.00033972,2]
[310180136,1704390668322,-500.0,0.00033972,2]
[310180137,1704390668333,-500.0,0.00033972,2]
[310180138,1704390668344,-500.0,0.00033972,2]
[310180139,1704390668354,-500.0,0.00033972,2]
[310180140,1704390668364,-2530.3,0.00033972,2]
[310180141,1704390668375,-666.11,0.00033972,2]
[310180142,1704390668385,-500.0,0.00033972,2]
[310180143,1704390668396,-500.0,0.00033972,2]
[310180144,1704390668407,-500.0,0.00033972,2]
[310180145,1704390668417,-500.0,0.00033972,2]
[310180146,1704390668429,-1225.76,0.00033972,2]
[310180147,1704390668440,-515.2,0.00033972,2]
[310180148,1704390668450,-500.0,0.00033972,2]
[310180149,1704390668462,-1638.37,0.00033972,2]
[310180150,1704390668472,-674.49,0.00033972,2]
[310180151,1704390668482,-1957.6,0.00033972,2]
[310180152,1704390668493,-500.0,0.00033972,2]
[310180153,1704390668504,-500.0,0.00033972,2]
[310180154,1704390668516,-500.0,0.00033972,2]
[310180155,1704390668526,-500.0,0.00033972,2]
[310180156,1704390668536,-1227.69,0.00033972,2]
[310180157,1704390668546,-500.0,0.00033972,2]
[310180158,1704390668557,-500.0,0.00033972,2]
[310180159,1704390668568,-1115.6,0.00033972,2]
[310180160,1704390668579,-1502.1,0.00033972,2]
[310180161,1704390668590,-500.0,0.00033972,2]
[310180162,1704390668601,-500.0,0.00033972,2]
[310180163,1704390668611,-500.0,0.00033972,2]
[310180164,1704390668622,-601.13,0.00033972,2]
[310180165,1704390668632,-500.0,0.00033972,2]
[310180166,1704390668642,-1095.01,0.00033972,2]
[310180167,1704390668652,-1112.32,0.00033972,2]
[310180168,1704390668662,-3635.49,0.00033972,2]
[310180169,1704390668673,-500.0,0.00033972,2]
[310180170,1704390668683,-500.0,0.00033972,2]
[310180171,1704390668693,-500.0,0.00033972,2]
[310180172,1704390668704,-683.22,0.00033972,2]
[310180173,1704390668714,-500.0,0.00033972,2]
[310180174,1704390668725,-908.85,0.00033972,2]
[310180175,1704390668734,-1548.81,0.00033972,2]
[310180176,1704390668745,-4115.94,0.00033972,2]
[310180177,1704390668754,-630.5,0.00033972,2]
[310180178,1704390668842,-602.19,0.00033972,2]
[310180179,1704390668853,-500.0,0.00033972,2]
[310180180,1704390668864,-500.0,0.00033972,2]
[310180181,1704390668874,-500.0,0.00033972,2]
[310180182,1704390668884,-1531.01,0.00033972,2]
[310180183,1704390668894,-1981.93,0.00033972,2]
[310180184,1704390668905,-1065.75,0.00033972,2]
[310180185,1704390668915,-587.25,0.00033972,2]
[310180186,1704390668926,-1067.69,0.00033972,2]
[310180187,1704390668936,-511.14,0.00033972,2]
[310180188,1704390668946,-500.0,0.00033972,2]
[310180189,1704390668956,-720.1,0.00033972,2]
[310180190,1704390668966,-500.0,0.00033972,2]
[310180191,1704390668976,-1768.26,0.00033972,2]
[310180192,1704390668985,-6881.5,0.00033972,2]
[310180193,1704390668996,-500.0,0.00033972,2]
[310180194,1704390669005,-500.0,0.00033972,2]
[310180195,1704390669015,-500.0,0.00033972,2]
[310180196,1704390669025,-2064.6,0.00033972,2]
[310180197,1704390669034,-1086.35,0.00033972,2]
[310180198,1704390669044,-1480.81,0.00033972,2]
[310180199,1704390669053,-526.27,0.00033972,2]
[310180200,1704390669066,-500.0,0.00033972,2]
[310180201,1704390669077,-500.0,0.00033972,2]
[310180202,1704390669086,-500.0,0.00033972,2]
[310180203,1704390669104,-819.26,0.00033972,2]
[310180204,1704390669113,-835.91,0.00033972,2]
[310180205,1704390669126,-532.1,0.00033972,2]
[310180206,1704390669140,-515.40807461,0.00033972,2]
[310180207,1704390669150,-500.0,0.00033972,2]
[310180208,1704390669161,-801.4,0.00033972,2]
[310180209,1704390669173,-621.08,0.00033972,2]
[310180210,1704390669183,-507.88,0.00033972,2]
[310180211,1704390669193,-500.0,0.00033972,2]
[310180212,1704390669203,-859.28247731,0.00033972,2]
[310180213,1704390669537,-831.92844839,0.00033972,2]
[310180214,1704390669550,-1501.07558471,0.00033972,2]
[310180215,1704390669565,-3245.17348959,0.00033972,2]
[310180216,1704390669576,-500.0,0.00033972,2]
[310180217,1704390669587,-843.26,0.00033972,2]
[310180218,1704390669599,-593.76,0.00033972,2]
[310180219,1704390669609,-500.0,0.00033972,2]
[310180220,1704390669619,-1704.85,0.00033972,2]
[310180221,1704390669629,-1390.54,0.00033972,2]
[310180222,1704390669639,-165.75904587,0.00033972,2]
[310180223,1704390669650,-630.58830452,0.00033972,2]
[310180224,1704390669661,-500.0,0.00033972,2]
[310180225,1704390669672,-500.0,0.00033972,2]
[310180226,1704390669684,-500.0,0.00033972,2]
[310180227,1704390669695,-589.64,0.00033972,2]
[310180228,1704390669716,-500.0,0.00033972,2]
[310180229,1704390669726,-500.0,0.00033972,2]
[310180230,1704390669746,-500.0,0.00033972,2]
[310180231,1704390669756,-2804.91,0.00033972,2]
[310180232,1704390669766,-500.0,0.00033972,2]
[310180233,1704390669777,-500.0,0.00033972,2]
[310180234,1704390669787,-500.0,0.00033972,2]
[310180235,1704390669796,-500.0,0.00033972,2]
[310180236,1704390669807,-500.0,0.00033972,2]
[310180237,1704390669818,-1132.74,0.00033972,2]
[310180238,1704390669829,-500.0,0.00033972,2]
[310180239,1704390669840,-1027.11,0.00033972,2]
[310180240,1704390669850,-500.0,0.00033972,2]
[310180241,1704390669861,-3550.71,0.00033972,2]
[310180242,1704390669871,-272.92980832,0.00033972,2]
[310180243,1704390669881,-500.0,0.00033972,2]
[310180244,1704390669891,-500.0,0.00033972,2]
[310180245,1704390669905,-183.41030695,0.00033972,2]
[310180246,1704390669916,-500.0,0.00033972,2]
[310180247,1704390669929,-500.0,0.00033972,2]
[310180248,1704390669949,-603.15981405,0.00033972,2]
[310180249,1704390669960,-1883.66,0.00033972,2]
[310180250,1704390669971,-1301.67,0.00033972,2]
[310180251,1704390669982,-569.76,0.00033972,2]
[310180252,1704390669992,-980.49,0.00033972,2]
[310180253,1704390670003,-500.0,0.00033972,2]
[310180254,1704390670013,-500.0,0.00033972,2]
[310180255,1704390670023,-1800.67,0.00033972,2]
[310180256,1704390670032,-536.60817479,0.00033972,2]
[310180257,1704390670045,-1779.82,0.00033972,2]
[310180258,1704390670062,-2066.07,0.00033972,2]
[310180259,1704390670072,-500.0,0.00033972,2]
[310180260,1704390670082,-500.0,0.00033972,2]
[310180261,1704390670091,-500.0,0.00033972,2]
[310180262,1704390670101,-933.35,0.00033972,2]
[310180263,1704390670111,-504.69662993,0.00033972,2]
[310180264,1704390670120,-1036.48,0.00033972,2]
[310180265,1704390670134,-796.42,0.00033972,2]
[310180266,1704390670144,-500.0,0.00033972,2]
[310180267,1704390670154,-500.0,0.00033972,2]
[310180268,1704390670166,-859.77,0.00033972,2]
[310180269,1704390670175,-500.0,0.00033972,2]
[310180270,1704390670185,-500.0,0.00033972,2]
[310180271,1704390670195,-3208.71,0.00033972,2]
[310180272,1704390670204,-500.0,0.00033972,2]
[310180273,1704390670214,-206.51772449,0.00033972,2]
[310180274,1704390670224,-885.63,0.00033972,2]
[310180275,1704390670234,-500.0,0.00033972,2]
[310180276,1704390670246,-725.61,0.00033972,2]
[310180277,1704390670256,-500.0,0.00033972,2]
[310180278,1704390670266,-4028.33,0.00033972,2]
[310180279,1704390670275,-947.57,0.00033972,2]
[310180280,1704390670285,-500.0,0.00033972,2]
[310180281,1704390670294,-711.27,0.00033972,2]
[310180282,1704390670304,-645.27,0.00033972,2]
[310180283,1704390670314,-500.0,0.00033972,2]
[310180284,1704390670324,-1162.29,0.00033972,2]
[310180285,1704390670334,-275.96029897,0.00033972,2]
[310180286,1704390670343,-1792.09,0.00033972,2]
[310180287,1704390670353,-500.0,0.00033972,2]
[310180288,1704390670362,-500.0,0.00033972,2]
[310180289,1704390670372,-500.0,0.00033972,2]
[310180290,1704390670382,-3077.15,0.00033972,2]
[310180291,1704390670393,-358.60875084,0.00033972,2]
[310180292,1704390670402,-500.0,0.00033972,2]
[310180293,1704390670413,-500.0,0.00033972,2]
[310180294,1704390670422,-1099.16,0.00033972,2]
[310180295,1704390670433,-500.0,0.00033972,2]
[310180296,1704390670443,-500.0,0.00033972,2]
[310180297,1704390670454,-500.0,0.00033972,2]
[310180298,1704390670463,-500.0,0.00033972,2]
[310180299,1704390670473,-4753.61,0.00033972,2]
[310180300,1704390670483,-151.0,0.00033972,7]
[310180301,1704390670494,-151.0,0.00033972,7]
[310180302,1704390670504,-321.02533,0.00033972,7]
[310180303,1704390670515,-321.02533,0.00033972,7]
[310180304,1704390670525,-150.0,0.0003399,2]
[310180305,1704390670535,-1000.0001,0.00033999,2]
[310180306,1704390670544,-150.0,0.00033999,2]
[310180307,1704390670554,-500.0,0.00033999,2]
[310180308,1704390670565,-500.0,0.00033999,2]
[310180309,1704390670574,-1207.47,0.00033999,2]
[310180310,1704390670584,-2681.4,0.00033999,2]
[310180311,1704390670594,-100000.0,0.00034,4]
[310180312,1704390670604,-151.0,0.00034,7]
[310180313,1704390670613,-151.0,0.00034,7]
[310180314,1704390670624,-508.630008,0.00034,7]
[310180315,1704390670635,-508.630008,0.00034,7]
[310180316,1704390670645,-800.66648758,0.00034,4]
[310180317,1704390670655,-1000.0,0.00034,4]
[310180318,1704390670665,-36042.50094985,0.00034,2]
[310180319,1704390670677,-20090.80400095,0.00034,2]
[310180320,1704390670686,-41087.69793731,0.00034,4]
[310180321,1704390670701,-19713.30206269,0.00034,4]
[310180322,1704390670711,-158.86,0.00034,2]
[310180323,1704390670720,-150.0,0.00034012,2]
[310180324,1704390670730,-500.0,0.00034014,2]
[310180325,1704390670740,-150.0,0.00034021,2]
[310180326,1704390670750,-150.0,0.00034026,2]
[310180327,1704390670760,-1500.0,0.00034035,2]
[310180328,1704390670770,-300.0,0.0003404,2]
[310180329,1704390670780,-150.0,0.00034049,2]
[310180330,1704390670789,-150.0,0.00034066,2]
[310180331,1704390670799,-150.0,0.00034074,2]
[310180332,1704390670809,-199.09,0.00034081,2]
[310180333,1704390670818,-150.0,0.00034109,2]
[310180334,1704390670828,-150.0,0.00034112,2]
[310180335,1704390670838,-229.62915476,0.00034116,2]
[310180336,1704390670848,-1500.0,0.0003413,2]
[310180337,1704390670857,-321.02533,0.0003413,7]
[310180338,1704390670870,-321.02533,0.0003413,7]
[310180339,1704390670880,-150.0,0.00034144,2]
[310180340,1704390670890,-150.0,0.00034164,2]
[310180341,1704390670901,-150.0,0.00034169,2]
[310180342,1704390670912,-4372.51596475,0.00034171,6]
[310180343,1704390670923,-150.0,0.00034178,2]
[310180344,1704390670935,-150.0,0.00034184,2]
[310180345,1704390670946,-1500.0,0.00034192,2]
[310180346,1704390670970,-150.0,0.00034211,2]
[310180347,1704390670982,-150.0,0.00034219,2]
[310180348,1704390670993,-432.13064396,0.0003422,2]
[310180349,1704390671004,-222.41,0.00034225,2]
[310180350,1704390671015,-154.72348001,0.00034236,2]
[310180351,1704390671026,-1500.0,0.00034243,2]
[310180352,1704390671037,-151.6899436,0.00034243,2]
[310180353,1704390671048,-500.0,0.00034245,2]
[310180354,1704390671059,-500.0,0.00034245,2]
[310180355,1704390671071,-1207.47,0.00034245,2]
[310180356,1704390671081,-2681.4,0.00034245,2]
[310180357,1704390671091,-150.0,0.00034245,2]
[310180358,1704390671101,-500.0,0.00034246,2]
[310180359,1704390671112,-500.0,0.00034246,2]
[310180360,1704390671125,-500.0,0.00034246,2]
[310180361,1704390671137,-482.92149152,0.00034246,2]
[310180362,1704390671147,-500.0,0.00034246,2]
[310180363,1704390671158,-500.0,0.00034246,2]
[310180364,1704390671168,-500.0,0.00034246,2]
[310180365,1704390671180,-500.0,0.00034246,2]
[310180366,1704390671191,-500.0,0.00034246,2]
[310180367,1704390671201,-500.0,0.00034246,2]
[310180368,1704390671212,-529.9,0.00034246,2]
[310180369,1704390671222,-199.0328816,0.00034246,2]
[310180370,1704390671233,-591.73,0.00034246,2]
[310180371,1704390671243,-245.66028086,0.00034246,2]
[310180372,1704390671254,-500.0,0.00034246,2]
[310180373,1704390671264,-500.0,0.00034246,2]
[310180374,1704390671274,-500.0,0.00034246,2]
[310180375,1704390671284,-500.0,0.00034246,2]
[310180376,1704390671295,-500.0,0.00034246,2]
[310180377,1704390671305,-500.0,0.00034246,2]
[310180378,1704390671317,-500.0,0.00034246,2]
[310180379,1704390671328,-500.0,0.00034246,2]
[310180380,1704390671338,-500.0,0.00034246,2]
[310180381,1704390671349,-500.0,0.00034246,2]
[310180382,1704390671360,-491.35705974,0.00034246,2]
[310180383,1704390671370,-500.0,0.00034246,2]
[310180384,1704390671380,-500.0,0.00034246,2]
[310180385,1704390671390,-159.88316633,0.00034246,2]
[310180386,1704390671400,-343.67745636,0.00034246,2]
[310180387,1704390671410,-500.0,0.00034246,2]
[310180388,1704390671422,-500.0,0.00034246,2]
[310180389,1704390671434,-500.0,0.00034246,2]
[310180390,1704390671445,-638.19397964,0.00034246,2]
[310180391,1704390671455,-500.0,0.00034246,2]
[310180392,1704390671465,-237.03,0.00034246,2]
[310180393,1704390671476,-902.69,0.00034246,2]
[310180394,1704390671487,-500.0,0.00034246,2]
[310180395,1704390671498,-500.0,0.00034246,2]
[310180396,1704390671510,-500.0,0.00034246,2]
[310180397,1704390671520,-500.0,0.00034246,2]
[310180398,1704390671532,-500.0,0.00034246,2]